bitfinex/quotes_BTCUSD_20230115
["timestamp","ask_amount","ask_price","bid_price","bid_amount"]
[1673760791513,0.541365,20760.0,20759.0,0.00546644]
[1673760791778,0.538365,20760.0,20759.0,0.00546644]
[1673760793108,0.541365,20760.0,20759.0,0.00546644]
[1673760793364,0.538365,20760.0,20759.0,0.00546644]
[1673760793620,0.541365,20760.0,20759.0,0.00546644]
[1673760794888,0.549865,20760.0,20759.0,0.00546644]
[1673760795894,0.546865,20760.0,20759.0,0.00546644]
[1673760796187,0.549865,20760.0,20759.0,0.00546644]
[1673760796659,0.546865,20760.0,20759.0,0.00546644]
[1673760797154,0.616865,20760.0,20759.0,0.00537575]
[1673760803818,1.23613065,20760.0,20759.0,0.00537575]
[1673760804080,1.55724565,20760.0,20759.0,0.00537575]
[1673760804826,1.44597565,20760.0,20759.0,0.00537575]
[1673760805070,1.23613065,20760.0,20759.0,0.00537575]
[1673760806614,0.616865,20760.0,20759.0,0.00537575]
[1673760807120,0.560195,20760.0,20759.0,0.48145733]
[1673760807375,0.0785,20760.0,20759.0,0.48145733]
[1673760808164,0.0085,20760.0,20759.0,0.48145733]
[1673760808425,0.0115,20760.0,20759.0,0.48145733]
[1673760808678,0.0085,20760.0,20759.0,0.48145733]
[1673760808941,0.0115,20760.0,20759.0,0.48145733]
[1673760809232,0.003,20760.0,20759.0,0.48145733]
[1673760818440,0.00288921,20760.0,20759.0,0.48145733]
[1673760827110,0.00288921,20760.0,20759.0,0.00537575]
[1673760828128,0.65513809,20761.0,20759.0,0.00537575]
[1673760828438,0.003,20760.0,20759.0,0.00537575]
[1673760829145,0.51127666,20761.0,20759.0,0.00537575]
[1673760829403,0.58127666,20761.0,20759.0,0.00537575]
[1673760829680,0.92870658,20762.0,20759.0,0.63365414]
[1673760829916,0.003,20760.0,20759.0,0.20007572]
[1673760830169,1.50603976,20763.0,20760.0,0.51995796]
[1673760830426,0.07,20761.0,20760.0,0.54481793]
[1673760830677,0.07,20761.0,20760.0,0.51995796]
[1673760830925,0.07,20762.0,20760.0,0.51995796]
[1673760831183,0.80861961,20763.0,20760.0,0.51995796]
[1673760831955,0.89961961,20763.0,20760.0,0.51995796]
[1673760832999,0.75575818,20763.0,20760.0,0.51995796]
[1673760833247,0.091,20763.0,20760.0,0.51995796]
[1673760833579,0.091,20763.0,20760.0,1.14469409]
[1673760833746,0.091,20763.0,20760.0,1.00164796]
[1673760834006,0.091,20763.0,20760.0,1.14469409]
[1673760834997,0.091,20763.0,20760.0,1.00164796]
[1673760836261,0.091,20763.0,20761.0,0.52001549]
[1673760837913,0.70312783,20764.0,20761.0,0.52001549]
[1673760838152,0.091,20763.0,20761.0,0.52001549]
[1673760838915,0.09089325,20763.0,20761.0,0.52001549]
[1673760847472,0.23475468,20763.0,20761.0,0.52001549]
[1673760847729,0.23475468,20763.0,20759.0,0.22712188]
[1673760847730,0.05667,20762.0,20759.0,0.00537575]
[1673760847993,0.19072595,20761.0,20759.0,0.00537575]
[1673760848244,0.33458738,20761.0,20759.0,0.00537575]
[1673760848495,0.14386143,20761.0,20759.0,0.00537575]
[1673760849007,0.62554243,20761.0,20759.0,0.00537575]
[1673760849255,0.05667,20760.0,20759.0,0.00537575]
[1673760849527,0.66063202,20760.0,20759.0,0.00537575]
[1673760849783,0.71730202,20760.0,20759.0,0.00537575]
[1673760850034,1.19899702,20760.0,20759.0,0.00537575]
[1673760850542,1.20199702,20760.0,20759.0,0.00537575]
[1673760853127,0.72030202,20760.0,20759.0,0.00537575]
[1673760854151,0.66363202,20760.0,20759.0,0.00537575]
[1673760856682,0.003,20760.0,20759.0,0.08707575]
[1673760856935,0.003,20760.0,20759.0,1.19358618]
[1673760857194,0.003,20760.0,20759.0,1.76317868]
[1673760857462,0.003,20760.0,20759.0,3.16308095]
[1673760857738,0.003,20760.0,20759.0,2.86308095]
[1673760857976,0.7232134,20764.0,20759.0,2.86308095]
[1673760858227,0.003,20760.0,20759.0,1.54483378]
[1673760858484,0.003,20760.0,20759.0,2.32374489]
[1673760858762,0.003,20760.0,20759.0,2.62374489]
[1673760859010,0.7232134,20764.0,20759.0,2.76711509]
[1673760859265,0.66935197,20764.0,20760.0,1.10682012]
[1673760859511,0.57935197,20764.0,20761.0,0.98684978]
[1673760859769,0.57935197,20764.0,20761.0,1.01170975]
[1673760860075,0.57935197,20764.0,20761.0,0.98684978]
[1673760860290,0.7232134,20764.0,20761.0,0.98684978]
[1673760861042,0.7232134,20764.0,20761.0,0.50518278]
[1673760861302,0.51151454,20763.0,20761.0,0.50518278]
[1673760861554,0.65537597,20763.0,20761.0,0.50518278]
[1673760862356,0.74637597,20763.0,20759.0,0.56599375]
[1673760862614,0.48696357,20762.0,20760.0,0.65941674]
[1673760863409,0.23486143,20763.0,20760.0,0.65941674]
[1673760864271,0.79804675,20764.0,20760.0,0.68427671]
[1673760864537,0.09,20763.0,20760.0,0.68427671]
[1673760864783,0.09,20763.0,20760.0,0.65941674]
[1673760865054,0.18,20763.0,20761.0,0.49756423]
[1673760865310,0.79804675,20764.0,20761.0,0.49756423]
[1673760865556,0.88904675,20764.0,20761.0,0.49756423]
[1673760865832,0.79804675,20764.0,20761.0,0.49756423]
[1673760866087,0.09,20763.0,20761.0,0.49756423]
[1673760867380,0.65418532,20764.0,20761.0,0.49756423]
[1673760867648,0.091,20763.0,20761.0,0.49756423]
[1673760873378,0.63334279,20763.0,20761.0,0.49756423]
[1673760877881,0.53130258,20762.0,20759.0,1.11571469]
[1673760878129,0.72202853,20762.0,20759.0,0.97232727]
[1673760878376,0.53130258,20762.0,20759.0,0.97232727]
[1673760878875,0.53130258,20762.0,20760.0,0.64279448]
[1673760880578,0.62130258,20762.0,20760.0,0.64279448]
[1673760886830,0.09,20762.0,20760.0,0.64279448]
[1673760887844,0.09,20762.0,20759.0,0.8452698]
[1673760888110,0.09,20762.0,20760.0,1.80326916]
[1673760888368,0.09,20762.0,20761.0,0.64918289]
[1673760888620,0.08989228,20762.0,20761.0,3.2202824]
[1673760888873,1.11127118,20768.0,20762.0,0.00131952]
[1673760888874,0.96740974,20768.0,20762.0,0.00131952]
[1673760889121,0.96740974,20768.0,20764.0,0.0789]
[1673760889373,0.96740974,20768.0,20765.0,0.02485997]
[1673760889374,0.54332,20767.0,20765.0,0.02485997]
[1673760889626,0.54332,20767.0,20764.0,0.0789]
[1673760890121,0.54332,20767.0,20764.0,0.560497]
[1673760890406,0.50605035,20765.0,20764.0,0.092]
[1673760890929,0.50605035,20765.0,20763.0,0.62889004]
[1673760891415,1.15098641,20767.0,20763.0,0.62889004]
[1673760891674,0.52853601,20766.0,20763.0,0.65375001]
[1673760891957,0.52853601,20766.0,20764.0,0.093]
[1673760892176,0.52853601,20766.0,20763.0,0.62889004]
[1673760892685,0.52853601,20766.0,20763.0,0.64199004]
[1673760893463,0.52853601,20766.0,20764.0,0.57525493]
[1673760894414,0.67239744,20766.0,20764.0,0.57525493]
[1673760894932,0.67239744,20766.0,20764.0,0.66825493]
[1673760895451,0.72906744,20766.0,20764.0,0.093]
[1673760895705,0.85232456,20765.0,20764.0,0.093]
[1673760895958,1.89262677,20765.0,20764.0,0.093]
[1673760896233,2.96730609,20765.0,20764.0,0.093]
[1673760896490,2.24811888,20765.0,20762.0,0.00131952]
[1673760896745,1.12656271,20764.0,20762.0,0.00131952]
[1673760896999,0.0085,20763.0,20762.0,0.00131952]
[1673760897511,0.490125,20763.0,20762.0,0.00131952]
[1673760898019,0.498125,20763.0,20762.0,0.00131952]
[1673760899294,0.98929132,20763.0,20762.0,0.00131952]
[1673760899529,1.67102234,20763.0,20762.0,0.00131952]
[1673760899817,1.34338273,20763.0,20762.0,0.00131952]
[1673760900098,1.45465273,20763.0,20762.0,0.00131952]
[1673760900348,1.13353773,20763.0,20762.0,0.00131952]
[1673760900595,1.45465273,20763.0,20762.0,0.00131952]
[1673760900866,1.67102234,20763.0,20762.0,0.00131952]
[1673760901380,1.34990734,20763.0,20762.0,0.00131952]
[1673760901855,1.13353773,20763.0,20762.0,0.00131952]
[1673760902608,0.98906632,20763.0,20762.0,0.00131952]
[1673760902868,0.51109248,20765.0,20762.0,0.10787949]
[1673760903122,0.007,20765.0,20763.0,0.02485997]
[1673760903369,0.007,20765.0,20764.0,0.76820283]
[1673760903620,0.007,20765.0,20764.0,1.9252971]
[1673760903862,0.007,20765.0,20764.0,2.70507131]
[1673760904115,0.01510702,20769.0,20764.0,3.17512889]
[1673760904365,0.01510702,20769.0,20765.0,1.21027001]
[1673760904613,0.01510702,20769.0,20765.0,0.72860305]
[1673760904876,0.01510702,20769.0,20765.0,0.58532397]
[1673760905877,0.01510702,20769.0,20765.0,1.15890297]
[1673760906369,0.01510702,20769.0,20765.0,1.134043]
[1673760906628,0.6833592,20769.0,20766.0,0.54478004]
[1673760906879,0.6833592,20769.0,20765.0,0.092]
[1673760906880,0.05667,20767.0,20765.0,0.092]
[1673760907136,0.32629595,20767.0,20765.0,0.092]
[1673760907392,0.23557,20767.0,20765.0,0.092]
[1673760907646,0.23557,20767.0,20764.0,0.55715196]
[1673760907894,0.42629595,20767.0,20764.0,0.55715196]
[1673760908150,0.74682764,20766.0,20762.0,0.00131952]
[1673760908397,0.05667,20763.0,20762.0,0.00131952]
[1673760908685,0.33419595,20763.0,20762.0,0.00131952]
[1673760908903,0.14347,20763.0,20762.0,0.00131952]
[1673760909172,0.0085,20763.0,20762.0,0.63188926]
[1673760909436,0.0085,20764.0,20762.0,0.53888926]
[1673760909790,0.49375989,20764.0,20762.0,0.53888926]
[1673760910466,0.001,20763.0,20762.0,0.61688926]
[1673760910725,0.49375989,20764.0,20762.0,0.53888926]
[1673760911004,0.49375989,20764.0,20762.0,0.61688926]
[1673760911005,0.49475989,20764.0,20762.0,0.61688926]
[1673760911466,0.49375989,20764.0,20762.0,0.53888926]
[1673760911725,0.001,20763.0,20762.0,0.61688926]
[1673760911970,0.49375989,20764.0,20762.0,0.53888926]
[1673760912219,0.49475989,20764.0,20762.0,0.61688926]
[1673760912463,0.49475989,20764.0,20762.0,0.53888926]
[1673760912960,0.001,20764.0,20762.0,0.53888926]
[1673760913454,0.001,20763.0,20762.0,0.62388926]
[1673760913704,0.64453919,20765.0,20762.0,0.53888926]
[1673760913969,0.62350876,20763.0,20762.0,0.08631952]
[1673760914706,0.62350876,20763.0,20762.0,0.00131952]
[1673760914956,0.62350876,20763.0,20762.0,0.08048952]
[1673760915202,0.62350876,20763.0,20762.0,0.00148952]
[1673760916202,0.62450876,20763.0,20762.0,0.06748952]
[1673760917976,0.58576876,20763.0,20762.0,0.06748952]
[1673760918743,0.43195578,20766.0,20762.0,0.57399849]
[1673760919010,0.64297451,20769.0,20765.0,0.0787]
[1673760919265,0.64297451,20769.0,20766.0,0.02485997]
[1673760919532,0.64297451,20769.0,20767.0,0.02485997]
[1673760919533,0.01510702,20769.0,20767.0,0.02485997]
[1673760919816,0.01510702,20769.0,20767.0,0.69459549]
[1673760920297,0.01510702,20769.0,20767.0,0.66973552]
[1673760920547,0.01510702,20769.0,20767.0,1.15125552]
[1673760921057,0.07001702,20769.0,20767.0,0.76273552]
[1673760921319,0.01510702,20769.0,20767.0,1.24426052]
[1673760922090,0.01510702,20769.0,20768.0,0.53234684]
[1673760922595,0.01610702,20769.0,20768.0,0.53234684]
[1673760923105,0.01710702,20769.0,20768.0,0.53234684]
[1673760923354,0.01510702,20769.0,20768.0,0.53234684]
[1673760923602,0.01610702,20769.0,20768.0,0.61734684]
[1673760928487,0.01610702,20769.0,20768.0,0.085]
[1673760929251,0.60298705,20769.0,20768.0,0.085]
[1673760932841,0.01610702,20769.0,20768.0,0.085]
[1673760933091,0.01610702,20769.0,20768.0,0.59100566]
[1673760941211,0.0159945,20769.0,20768.0,0.59100566]
[1673760944048,0.0159945,20769.0,20768.0,0.085]
[1673760944049,0.73378939,20769.0,20768.0,0.085]
[1673760944823,1.21527539,20769.0,20768.0,0.085]
[1673760945878,1.53639039,20769.0,20768.0,0.085]
[1673760946142,1.21527539,20769.0,20768.0,0.085]
[1673760946398,1.53539039,20769.0,20766.0,0.50567875]
[1673760946655,1.21527539,20769.0,20768.0,0.067]
[1673760947470,1.21427539,20769.0,20766.0,0.50567875]
[1673760947720,1.21527539,20769.0,20766.0,0.58467875]
[1673760947974,0.59078579,20768.0,20766.0,0.50567875]
[1673760949856,0.59178579,20768.0,20766.0,0.58467875]
[1673760951156,1.07330079,20768.0,20766.0,0.58467875]
[1673760953196,0.65525621,20767.0,20766.0,0.079]
[1673760953437,1.13678921,20767.0,20766.0,0.079]
[1673760954196,0.481533,20767.0,20766.0,0.079]
[1673760954971,0.481533,20767.0,20765.0,1.04026746]
[1673760955204,0.482533,20767.0,20766.0,0.079]
[1673760955447,0.001,20767.0,20766.0,0.079]
[1673760955734,0.51261511,20767.0,20766.0,0.079]
[1673760956082,0.51161511,20767.0,20765.0,1.04026746]
[1673760956232,0.51261511,20767.0,20765.0,1.11926746]
[1673760956479,0.51161511,20767.0,20765.0,1.04026746]
[1673760956724,0.51261511,20767.0,20766.0,0.079]
[1673760957965,0.04942,20769.0,20766.0,0.10375997]
[1673760958216,0.01589229,20773.0,20767.0,1.15530085]
[1673760958468,9.229e-05,20773.0,20771.0,0.35792915]
[1673760958724,9.229e-05,20773.0,20772.0,0.28634331]
[1673760958987,9.229e-05,20773.0,20772.0,2.25192164]
[1673760959259,9.229e-05,20773.0,20772.0,1.57056788]
[1673760959514,9.229e-05,20773.0,20772.0,2.95195556]
[1673760959774,9.229e-05,20773.0,20772.0,3.09523337]
[1673760960262,9.229e-05,20773.0,20772.0,0.88105354]
[1673760960523,9.229e-05,20773.0,20772.0,1.08105354]
[1673760960769,9.229e-05,20773.0,20772.0,2.25809526]
[1673760961016,9.229e-05,20773.0,20772.0,1.39530834]
[1673760961267,9.229e-05,20773.0,20772.0,1.48630834]
[1673760961515,9.229e-05,20773.0,20772.0,1.38630834]
[1673760962029,9.229e-05,20773.0,20772.0,1.17205354]
[1673760962543,9.229e-05,20773.0,20772.0,2.48127702]
[1673760962783,9.229e-05,20773.0,20772.0,3.12554947]
[1673760963023,9.229e-05,20773.0,20772.0,2.83920616]
[1673760963272,0.01966767,20774.0,20773.0,0.2618062]
[1673760963536,6.7e-07,20774.0,20773.0,3.49111026]
[1673760963786,0.01616181,20775.0,20774.0,0.1]
[1673760964033,0.01616181,20775.0,20774.0,2.69708685]
[1673760964280,0.01616181,20775.0,20774.0,2.76847441]
[1673760964530,0.01616181,20775.0,20774.0,0.85957]
[1673760965028,0.01616181,20775.0,20774.0,0.55957]
[1673760965277,0.01616181,20775.0,20774.0,0.95157]
[1673760966529,0.01616181,20775.0,20774.0,1.26738724]
[1673760966749,0.01616181,20775.0,20774.0,1.56738724]
[1673760967037,0.01616181,20775.0,20774.0,1.26738724]
[1673760967547,0.01616181,20775.0,20774.0,1.56738724]
[1673760968315,0.01616181,20775.0,20774.0,1.26738724]
[1673760969098,0.01616181,20775.0,20774.0,0.78601724]
[1673760970385,0.01616181,20775.0,20774.0,0.1702]
[1673760970643,0.01616181,20775.0,20774.0,0.95157]
[1673760970917,0.01616181,20775.0,20774.0,1.05157]
[1673760972994,0.01616181,20775.0,20774.0,1.13047]
[1673760973252,0.01409535,20777.0,20775.0,0.0064239]
[1673760973505,0.01409535,20777.0,20776.0,1.701572]
[1673760973762,0.01409535,20777.0,20776.0,2.001572]
[1673760974530,0.01459535,20778.0,20777.0,0.1]
[1673760974803,0.01459535,20778.0,20777.0,0.659601]
[1673760975119,0.01632239,20784.0,20778.0,0.1]
[1673760975320,0.01632239,20784.0,20779.0,0.38998512]
[1673760975321,0.55187051,20784.0,20779.0,0.38998512]
[1673760975585,0.01632239,20784.0,20780.0,0.3]
[1673760975838,0.01632239,20784.0,20781.0,1.443624]
[1673760976087,0.01243803,20784.0,20781.0,1.443624]
[1673760976375,0.02156816,20785.0,20782.0,0.71470764]
[1673760976601,0.02156816,20785.0,20784.0,0.0789]
[1673760976862,0.02156816,20785.0,20784.0,1.25002412]
[1673760977115,0.02156816,20785.0,20784.0,1.52290366]
[1673760977365,0.02156816,20785.0,20784.0,1.47020301]
[1673760977912,0.02156816,20785.0,20784.0,1.17020301]
[1673760978146,0.02156816,20785.0,20784.0,0.573139]
[1673760978397,0.02156816,20785.0,20784.0,0.873139]
[1673760978652,0.65695884,20792.0,20785.0,0.11284323]
[1673760978905,0.0788,20791.0,20787.0,0.481065]
[1673760979156,0.66792764,20792.0,20788.0,0.02485997]
[1673760979157,0.0789,20790.0,20788.0,0.02485997]
[1673760979421,0.74326432,20791.0,20788.0,0.50884821]
[1673760979666,0.75501949,20791.0,20788.0,0.53370818]
[1673760979913,0.75501949,20791.0,20788.0,0.98987721]
[1673760980160,0.001,20790.0,20788.0,1.07487721]
[1673760980682,0.75501949,20791.0,20788.0,0.98987721]
[1673760980933,0.75601949,20791.0,20788.0,1.07487721]
[1673760981181,0.75601949,20791.0,20788.0,0.98987721]
[1673760981444,0.001,20790.0,20788.0,1.07487721]
[1673760981690,0.75501949,20791.0,20789.0,0.55537858]
[1673760982202,0.75501949,20791.0,20785.0,0.49393723]
[1673760982457,0.54198184,20789.0,20787.0,0.5356421]
[1673760983751,0.54298184,20789.0,20787.0,0.6206421]
[1673760984012,0.54298184,20789.0,20787.0,0.085]
[1673760984523,0.54198184,20789.0,20786.0,0.52872889]
[1673760984779,0.54198184,20789.0,20787.0,0.58322225]
[1673760985787,0.54298184,20789.0,20787.0,0.66822225]
[1673760986011,0.54198184,20789.0,20787.0,0.58322225]
[1673760986258,0.54298184,20789.0,20787.0,0.66822225]
[1673760987079,0.001,20789.0,20787.0,0.66822225]
[1673760987786,1.03112532,20790.0,20787.0,0.66822225]
[1673760988087,1.00612532,20790.0,20787.0,0.66822225]
[1673760988626,1.00612532,20790.0,20787.0,0.085]
[1673760988902,0.95820269,20790.0,20785.0,0.58959157]
[1673760989160,0.0789,20788.0,20787.0,0.087]
[1673760989433,1.362107,20788.0,20787.0,0.087]
[1673760989675,1.93431349,20788.0,20787.0,0.087]
[1673760989930,1.362107,20788.0,20787.0,0.087]
[1673760990211,0.2998,20787.0,20785.0,0.01284323]
[1673760990483,2.154504,20786.0,20785.0,0.01284323]
[1673760990756,1.863004,20786.0,20785.0,0.01284323]
[1673760991267,1.740424,20786.0,20785.0,0.01284323]
[1673760991527,0.769738,20786.0,20785.0,0.01284323]
[1673760991828,0.769738,20786.0,20785.0,0.01784323]
[1673760992088,0.769738,20786.0,20785.0,0.01284323]
[1673760992345,1.42369394,20786.0,20785.0,0.09284323]
[1673760992654,1.42369394,20786.0,20785.0,0.01284323]
[1673760992655,1.42269394,20786.0,20785.0,0.01284323]
[1673760992909,0.86380094,20786.0,20785.0,0.09284323]
[1673760993426,0.65395594,20786.0,20785.0,0.09284323]
[1673760993712,0.65295594,20786.0,20785.0,0.09454323]
[1673760993973,0.65395594,20786.0,20785.0,0.17454323]
[1673760994792,0.001,20786.0,20785.0,0.17454323]
[1673760995049,0.0782,20789.0,20785.0,0.65565923]
[1673760995298,0.5816264,20788.0,20786.0,0.65367158]
[1673760995573,0.321115,20787.0,20786.0,0.65367158]
[1673760995830,0.5816264,20788.0,20786.0,0.65367158]
[1673760996094,0.321115,20787.0,20785.0,0.01284323]
[1673760996347,0.209845,20786.0,20785.0,0.01284323]
[1673760996889,0.962169,20787.0,20785.0,0.01284323]
[1673760997375,0.91874404,20786.0,20785.0,0.01284323]
[1673760997616,0.59762904,20786.0,20785.0,0.01284323]
[1673760998122,0.59862904,20786.0,20785.0,0.09384323]
[1673760998860,0.59762904,20786.0,20785.0,0.01284323]
[1673760999114,0.59862904,20786.0,20785.0,0.09384323]
[1673760999376,0.59862904,20786.0,20785.0,0.01284323]
[1673760999627,0.59962904,20786.0,20785.0,0.09384323]
[1673761000411,1.48073704,20786.0,20785.0,0.09384323]
[1673761000712,0.883108,20786.0,20785.0,0.09384323]
[1673761001160,1.49190308,20786.0,20785.0,0.09384323]
[1673761001430,1.67136716,20786.0,20785.0,0.09384323]
[1673761001686,1.37136716,20786.0,20785.0,0.09384323]
[1673761002973,1.183108,20786.0,20785.0,0.09384323]
[1673761003754,1.66880969,20786.0,20785.0,0.09384323]
[1673761004267,1.36880969,20786.0,20785.0,0.09384323]
[1673761004539,1.36680969,20786.0,20785.0,0.01284323]
[1673761004769,1.66680969,20786.0,20785.0,0.01284323]
[1673761005017,1.36180969,20786.0,20785.0,0.01284323]
[1673761005271,1.67980969,20786.0,20785.0,0.01884323]
[1673761005524,1.37980969,20786.0,20785.0,0.01884323]
[1673761009970,1.52335901,20786.0,20785.0,0.01884323]
[1673761010233,2.1210003,20786.0,20785.0,0.01884323]
[1673761010490,1.52335901,20786.0,20785.0,0.01884323]
[1673761010744,1.99955806,20786.0,20785.0,0.01884323]
[1673761011532,1.98155806,20786.0,20785.0,0.01284323]
[1673761011796,1.99955806,20786.0,20785.0,0.01884323]
[1673761012059,1.36180969,20786.0,20785.0,0.01284323]
[1673761012341,1.37980969,20786.0,20785.0,0.01884323]
[1673761012884,2.17222593,20786.0,20785.0,0.01884323]
[1673761013143,1.52335901,20786.0,20785.0,0.01884323]
[1673761013867,1.97821274,20786.0,20785.0,0.01884323]
[1673761013869,1.52335901,20786.0,20785.0,0.01884323]
[1673761014372,1.73871326,20786.0,20785.0,0.01884323]
[1673761014902,1.52335901,20786.0,20785.0,0.01884323]
[1673761015159,2.03871326,20786.0,20785.0,0.01884323]
[1673761015417,1.96718213,20786.0,20785.0,0.01884323]
[1673761015676,2.33285354,20786.0,20785.0,0.01884323]
[1673761016198,2.37733354,20786.0,20785.0,0.01884323]
[1673761016696,2.35933354,20786.0,20785.0,0.01284323]
[1673761016944,2.35933354,20786.0,20785.0,0.01384323]
[1673761016945,2.44433354,20786.0,20785.0,0.01384323]
[1673761017206,2.72695336,20786.0,20785.0,0.01384323]
[1673761017459,2.43933354,20786.0,20785.0,0.01384323]
[1673761018475,2.08007242,20786.0,20785.0,0.01384323]
[1673761019494,2.03017242,20786.0,20785.0,0.01384323]
[1673761020540,2.82812411,20786.0,20785.0,0.01384323]
[1673761021051,2.46205824,20786.0,20785.0,0.01384323]
[1673761022069,2.03017242,20786.0,20785.0,0.01384323]
[1673761022590,2.03017242,20786.0,20785.0,0.01284323]
[1673761022591,1.94517242,20786.0,20785.0,0.01284323]
[1673761022842,2.03617242,20786.0,20785.0,0.01284323]
[1673761023092,1.94517242,20786.0,20785.0,0.01284323]
[1673761023341,1.99169242,20786.0,20785.0,0.01284323]
[1673761023595,2.89377859,20786.0,20785.0,0.01284323]
[1673761023847,2.35134154,20786.0,20785.0,0.01284323]
[1673761024097,1.99169242,20786.0,20785.0,0.01284323]
[1673761024357,2.89768041,20786.0,20785.0,0.01284323]
[1673761025682,2.42357824,20786.0,20785.0,0.01284323]
[1673761027929,2.78561287,20786.0,20785.0,0.01284323]
[1673761028425,2.69461287,20786.0,20785.0,0.01284323]
[1673761028866,2.78561287,20786.0,20785.0,0.01284323]
[1673761029398,2.69461287,20786.0,20785.0,0.01284323]
[1673761029918,3.25971504,20786.0,20785.0,0.01284323]
[1673761030163,3.6117403,20786.0,20785.0,0.01284323]
[1673761030653,0.00916131,20784.0,20778.0,0.01894163]
[1673761030896,0.00916131,20784.0,20778.0,0.00394163]
[1673761030897,0.3597215,20780.0,20778.0,0.00394163]
[1673761031140,1.41435195,20779.0,20778.0,0.00394163]
[1673761031396,1.223626,20779.0,20778.0,0.00394163]
[1673761032671,1.232626,20779.0,20778.0,0.00394163]
[1673761033733,1.84166778,20779.0,20778.0,0.00394163]
[1673761035008,1.83266778,20779.0,20778.0,0.00419163]
[1673761035254,1.83966778,20779.0,20778.0,0.00025]
[1673761035512,2.04165339,20779.0,20778.0,0.00025]
[1673761035800,2.04165339,20779.0,20776.0,0.00383242]
[1673761035801,3.19961532,20779.0,20776.0,0.00383242]
[1673761036054,0.2158127,20777.0,20776.0,0.00372211]
[1673761036319,0.88219106,20777.0,20776.0,0.00372211]
[1673761036598,2.33459406,20777.0,20776.0,0.00372211]
[1673761036852,1.70941969,20777.0,20776.0,0.00372211]
[1673761037936,1.71641969,20777.0,20776.0,0.00372211]
[1673761038198,1.70941969,20777.0,20776.0,0.00372211]
[1673761038455,1.79941969,20777.0,20776.0,0.00372211]
[1673761038716,1.94329306,20777.0,20776.0,0.00372211]
[1673761038968,2.61160299,20777.0,20776.0,0.00372211]
[1673761039269,3.01166713,20777.0,20776.0,0.00372211]
[1673761039525,2.46772962,20777.0,20776.0,0.00372211]
[1673761040052,1.01942593,20777.0,20776.0,0.00372211]
[1673761040309,1.50072693,20777.0,20776.0,0.00372211]
[1673761040557,1.23961093,20777.0,20776.0,0.00372211]
[1673761040875,1.56071893,20777.0,20776.0,0.00372211]
[1673761041139,1.23961093,20777.0,20776.0,0.00372211]
[1673761041382,1.56071893,20777.0,20776.0,0.00372211]
[1673761043170,1.77123479,20777.0,20776.0,0.00372211]
[1673761043683,1.56071893,20777.0,20776.0,0.00372211]
[1673761045802,1.56921893,20777.0,20776.0,0.00372211]
[1673761049877,1.56946893,20777.0,20776.0,0.00372211]
[1673761050136,2.0133423,20777.0,20776.0,0.00372211]
[1673761050385,1.34503237,20777.0,20776.0,0.00372211]
[1673761050643,2.30209347,20777.0,20776.0,0.00372211]
[1673761051145,2.34657347,20777.0,20776.0,0.00372211]
[1673761051408,2.06061095,20777.0,20776.0,0.00372211]
[1673761051658,2.34836903,20777.0,20776.0,0.00372211]
[1673761052454,2.67303478,20777.0,20776.0,0.00372211]
[1673761052726,2.96079286,20777.0,20776.0,0.00372211]
[1673761053224,2.89069082,20777.0,20776.0,0.00372211]
[1673761053773,2.50383924,20777.0,20776.0,0.00372211]
[1673761054294,2.41383924,20777.0,20776.0,0.00372211]
[1673761054556,2.50483924,20777.0,20776.0,0.00372211]
[1673761054808,2.41378043,20777.0,20776.0,0.00372211]
[1673761055059,2.50478043,20777.0,20776.0,0.00372211]
[1673761055331,2.86086826,20777.0,20776.0,0.00372211]
[1673761055575,2.19655423,20777.0,20776.0,0.00372211]
[1673761055824,2.49655423,20777.0,20776.0,0.00372211]
[1673761056142,2.78424434,20777.0,20776.0,0.00372211]
[1673761056336,2.69324434,20777.0,20776.0,0.00372211]
[1673761056621,2.78424434,20777.0,20776.0,0.00372211]
[1673761057120,3.22491188,20777.0,20776.0,0.00372211]
[1673761057375,3.00914411,20777.0,20776.0,0.00372211]
[1673761057662,2.78925258,20777.0,20776.0,0.00372211]
[1673761058232,3.14889098,20777.0,20776.0,0.00372211]
[1673761058500,2.3042551,20777.0,20776.0,0.00210177]
[1673761058933,2.93920014,20777.0,20776.0,0.00210177]
[1673761058934,2.3042551,20777.0,20776.0,0.00210177]
[1673761059152,2.97386115,20777.0,20776.0,0.00210177]
[1673761059608,3.26166386,20777.0,20776.0,0.00210177]
[1673761059832,2.24757781,20777.0,20776.0,0.02696174]
[1673761060094,1.04604466,20777.0,20776.0,0.6419295]
[1673761060309,1.52324635,20777.0,20776.0,0.00210177]
[1673761060538,0.72839322,20776.0,20771.0,1.01834172]
[1673761060762,0.38505895,20775.0,20771.0,1.01834172]
[1673761060976,0.19072595,20774.0,20771.0,0.66993995]
[1673761061646,0.67210295,20774.0,20771.0,0.66993995]
[1673761061864,0.481377,20774.0,20771.0,0.66993995]
[1673761062082,0.99992906,20774.0,20771.0,0.66993995]
[1673761062298,0.48876909,20773.0,20771.0,0.66993995]
[1673761063903,0.49776909,20773.0,20771.0,0.66993995]
[1673761064549,0.97917009,20773.0,20771.0,0.66993995]
[1673761064764,0.97917009,20773.0,20770.0,0.0785]
[1673761064993,0.58373489,20772.0,20770.0,0.0785]
[1673761065272,0.58373489,20772.0,20770.0,0.66358644]
[1673761066567,0.59273489,20772.0,20770.0,0.66358644]
[1673761068677,1.11863989,20772.0,20770.0,0.66358644]
[1673761069210,1.11863989,20772.0,20771.0,0.58149497]
[1673761069211,0.009,20772.0,20771.0,0.58149497]
[1673761069741,0.009,20772.0,20771.0,0.64647797]
[1673761069994,0.009,20772.0,20771.0,0.58149497]
[1673761071046,0.481388,20774.0,20771.0,0.58149497]
[1673761071298,0.009,20772.0,20771.0,0.58139977]
[1673761072043,1.61744133,20774.0,20771.0,0.58139977]
[1673761072291,1.47354199,20774.0,20771.0,0.58139977]
[1673761072547,1.61744133,20774.0,20771.0,0.65999977]
[1673761073052,0.009,20772.0,20771.0,0.65999977]
[1673761073560,0.009,20772.0,20771.0,0.72498277]
[1673761073816,1.61744133,20774.0,20771.0,0.65999977]
[1673761074094,1.48254199,20774.0,20771.0,0.65999977]
[1673761074323,0.481388,20774.0,20771.0,0.68485974]
[1673761074594,0.84110036,20775.0,20771.0,0.65999977]
[1673761074595,0.009,20772.0,20771.0,0.65999977]
[1673761074851,0.64309883,20775.0,20771.0,0.72498277]
[1673761075109,0.009,20774.0,20772.0,0.47702499]
[1673761075384,0.009,20774.0,20773.0,0.064972]
[1673761075638,0.009,20774.0,20773.0,0.044972]
[1673761075915,0.72990798,20776.0,20773.0,0.044972]
[1673761076177,0.945757,20776.0,20773.0,0.02485997]
[1673761076444,0.945757,20776.0,20772.0,0.53107925]
[1673761076959,0.01,20775.0,20772.0,0.53107925]
[1673761077225,1.42709,20776.0,20772.0,0.53107925]